bitfinex/quotes_BTCUSD_20230106
["timestamp","ask_amount","ask_price","bid_price","bid_amount"]
[1672972942893,1.83442887,16843.0,16842.0,0.002]
[1672972943419,2.53599065,16843.0,16842.0,0.002]
[1672972943675,3.14763465,16843.0,16842.0,0.002]
[1672972944196,2.57824894,16843.0,16842.0,0.002]
[1672972944455,3.17196694,16843.0,16842.0,0.002]
[1672972945489,3.17196694,16843.0,16842.0,0.00188117]
[1672972945747,3.77283548,16843.0,16842.0,0.00188117]
[1672972948266,3.17911748,16843.0,16842.0,0.00188117]
[1672972954624,2.87911748,16843.0,16842.0,0.65231023]
[1672972954880,1.07288694,16843.0,16842.0,0.65231023]
[1672972955419,0.4069645,16843.0,16842.0,0.65231023]
[1672972955663,0.0069645,16843.0,16842.0,0.65231023]
[1672972955917,0.4069645,16843.0,16842.0,0.65231023]
[1672972956431,0.94159461,16843.0,16842.0,0.65231023]
[1672972956740,0.4069645,16843.0,16842.0,0.65231023]
[1672972956949,0.0069645,16843.0,16842.0,0.65231023]
[1672972957465,0.54157817,16843.0,16842.0,0.65231023]
[1672972962316,0.54157817,16843.0,16842.0,1.22690599]
[1672972964382,0.54157817,16843.0,16842.0,1.28770599]
[1672972964628,0.54157817,16843.0,16842.0,1.22690599]
[1672972965428,0.54157817,16843.0,16842.0,1.28770599]
[1672972966492,0.54157817,16843.0,16842.0,1.22682765]
[1672972970246,0.0069645,16843.0,16842.0,2.22058065]
[1672972970501,0.0069645,16843.0,16842.0,1.70678489]
[1672972970762,0.0069645,16843.0,16842.0,2.2818664]
[1672972971020,0.45228048,16843.0,16842.0,2.2818664]
[1672972971264,0.45219765,16843.0,16842.0,1.30678489]
[1672972971782,0.45219765,16843.0,16842.0,1.90053789]
[1672972972038,0.45219765,16843.0,16842.0,2.47576226]
[1672972973036,0.80837618,16843.0,16842.0,2.47576226]
[1672972973313,0.45219765,16843.0,16842.0,2.47576226]
[1672972973570,0.80836608,16843.0,16842.0,2.47576226]
[1672972974331,0.45219765,16843.0,16842.0,1.88200926]
[1672972975104,0.80828689,16843.0,16842.0,2.47576226]
[1672972975624,0.63010588,16843.0,16842.0,2.47576226]
[1672972977700,0.80806797,16843.0,16842.0,2.47576226]
[1672972977923,0.45197873,16843.0,16842.0,2.47576226]
[1672972978214,0.80806797,16843.0,16842.0,2.47576226]
[1672972979279,0.45195798,16843.0,16842.0,2.47576226]
[1672972979532,0.63010588,16843.0,16842.0,2.47576226]
[1672972980560,1.07533903,16843.0,16842.0,1.88200926]
[1672972980825,0.80828689,16843.0,16842.0,1.82120926]
[1672972981587,0.451785,16843.0,16842.0,2.47576226]
[1672972982099,0.451785,16843.0,16842.0,1.90053789]
[1672972982359,0.451785,16843.0,16842.0,2.47625488]
[1672972987550,0.451785,16843.0,16842.0,2.47616604]
[1672972987829,0.451785,16843.0,16842.0,1.88241304]
[1672972988047,0.451785,16843.0,16842.0,1.82161304]
[1672972988306,0.451785,16843.0,16842.0,1.88241304]
[1672972988560,0.80787424,16843.0,16842.0,2.47616604]
[1672972988829,0.62994846,16843.0,16842.0,2.47616604]
[1672972989067,0.45176845,16843.0,16842.0,2.47616604]
[1672972990582,0.45169716,16843.0,16842.0,2.47616604]
[1672972992103,0.62987717,16843.0,16842.0,1.82161304]
[1672972992347,0.62987717,16843.0,16842.0,1.88241304]
[1672972992606,0.62987717,16843.0,16842.0,1.82161304]
[1672972992863,0.62987717,16843.0,16842.0,1.88241304]
[1672972993842,0.62987717,16843.0,16842.0,2.47616604]
[1672972996483,1.07511032,16843.0,16842.0,2.47616604]
[1672972996734,0.8082156,16843.0,16842.0,1.82161304]
[1672972998291,0.8082156,16843.0,16842.0,2.41536604]
[1672972998777,0.8082156,16843.0,16842.0,2.47616604]
[1672973001146,0.8082156,16843.0,16842.0,2.41536604]
[1672973001407,0.8082156,16843.0,16842.0,1.82161304]
[1672973003350,0.45212636,16843.0,16842.0,1.82161304]
[1672973003610,0.45212636,16843.0,16842.0,2.41536604]
[1672973004346,0.80833536,16843.0,16842.0,2.41536604]
[1672973005364,0.45212636,16843.0,16842.0,2.41536604]
[1672973005721,0.80839313,16843.0,16842.0,2.47616604]
[1672973005881,0.45212636,16843.0,16842.0,1.82161304]
[1672973006397,0.45212636,16843.0,16842.0,2.41536604]
[1672973009507,0.00689321,16843.0,16842.0,2.41536604]
[1672973009760,0.00689321,16843.0,16842.0,1.82161304]
[1672973012210,0.54150688,16843.0,16842.0,1.82161304]
[1672973012475,0.00689321,16843.0,16842.0,1.82161304]
[1672973013289,0.54150688,16843.0,16842.0,1.82161304]
[1672973013790,0.00689321,16843.0,16842.0,1.82161304]
[1672973014009,0.54150688,16843.0,16842.0,1.82161304]
[1672973014702,0.00689321,16843.0,16842.0,1.82161304]
[1672973015028,0.00689321,16843.0,16842.0,1.82152345]
[1672973016042,0.54142685,16843.0,16842.0,1.82152345]
[1672973016533,0.00681318,16843.0,16842.0,1.82152345]
[1672973021273,0.80854965,16843.0,16842.0,2.47607645]
[1672973021576,0.80854965,16843.0,16842.0,2.41527645]
[1672973021832,0.80854965,16843.0,16842.0,2.47607645]
[1672973022868,1.07577987,16843.0,16842.0,2.47607645]
[1672973023125,0.63036616,16843.0,16842.0,2.47607645]
[1672973023648,0.63036616,16843.0,16842.0,2.41527645]
[1672973024153,0.63036616,16843.0,16842.0,2.47607645]
[1672973025991,0.63036616,16843.0,16842.0,2.41527645]
[1672973026281,0.45218341,16843.0,16842.0,1.82564739]
[1672973026803,0.00681318,16843.0,16842.0,1.82564739]
[1672973027064,0.00681318,16843.0,16842.0,2.47152076]
[1672973027334,0.00681318,16843.0,16842.0,1.82564739]
[1672973028125,0.00681318,16843.0,16842.0,1.76484739]
[1672973028398,0.00681318,16843.0,16842.0,1.82564739]
[1672973031861,0.00681318,16843.0,16842.0,2.53451947]
[1672973032102,0.00681318,16843.0,16842.0,2.51786561]
[1672973032355,0.00681318,16843.0,16842.0,1.76484739]
[1672973032867,0.00681318,16843.0,16842.0,1.82564739]
[1672973033379,0.00681318,16843.0,16842.0,2.51406091]
[1672973033633,0.00681318,16843.0,16842.0,1.82564739]
[1672973034404,0.00681318,16843.0,16842.0,2.5146311]
[1672973034645,0.00681318,16843.0,16842.0,2.41492501]
[1672973035159,0.00681318,16843.0,16842.0,2.51973634]
[1672973038112,0.00681318,16843.0,16842.0,1.82564739]
[1672973038357,0.00681318,16843.0,16842.0,2.41521649]
[1672973038588,0.00681318,16843.0,16842.0,2.35441649]
[1672973039074,0.00681318,16843.0,16842.0,2.41521649]
[1672973042414,0.00681318,16843.0,16842.0,2.35441649]
[1672973042961,0.00681318,16843.0,16842.0,2.41521649]
[1672973058780,0.18495319,16843.0,16842.0,2.41521649]
[1672973060750,0.45218341,16843.0,16842.0,2.41521649]
[1672973061262,0.45218341,16843.0,16842.0,2.41512598]
[1672973064554,0.80850617,16843.0,16842.0,2.41512598]
[1672973064820,0.63036616,16843.0,16842.0,2.41512598]
[1672973065057,0.45222973,16843.0,16842.0,2.41512598]
[1672973065829,0.80855249,16843.0,16842.0,2.41512598]
[1672973066079,0.63036616,16843.0,16842.0,2.41512598]
[1672973066645,0.80854981,16843.0,16842.0,2.41512598]
[1672973066852,0.63036616,16843.0,16842.0,2.35432598]
[1672973068425,0.80853149,16843.0,16842.0,2.41512598]
[1672973068680,0.45220873,16843.0,16842.0,2.41512598]
[1672973075722,0.45220873,16843.0,16842.0,2.35432598]
[1672973076009,0.63036616,16843.0,16842.0,2.35432598]
[1672973079980,1.07582093,16843.0,16842.0,2.35432598]
[1672973080228,0.80854965,16843.0,16842.0,1.76057298]
[1672973080748,0.80854965,16843.0,16842.0,2.35432598]
[1672973082722,0.80854965,16843.0,16842.0,2.41512598]
[1672973083200,0.80854965,16843.0,16842.0,2.35432598]
[1672973083456,0.63037109,16843.0,16842.0,2.41512598]
[1672973087759,0.63037109,16843.0,16842.0,2.35432598]
[1672973089029,0.80854965,16843.0,16842.0,2.35432598]
[1672973089512,1.07579463,16843.0,16842.0,2.35432598]
[1672973090004,0.63038092,16843.0,16842.0,2.35432598]
[1672973090223,1.07579463,16843.0,16842.0,2.35432598]
[1672973090435,0.63038092,16843.0,16842.0,2.35432598]
[1672973090699,1.07579463,16843.0,16842.0,2.35432598]
[1672973090953,0.80854965,16843.0,16842.0,2.35432598]
[1672973091210,0.80854965,16843.0,16842.0,2.35423341]
[1672973094086,0.80854965,16843.0,16842.0,1.77739564]
[1672973094359,0.45222689,16843.0,16842.0,1.18476342]
[1672973095170,0.45222689,16843.0,16842.0,1.77739564]
[1672973095406,0.80852576,16843.0,16842.0,1.77739564]
[1672973095681,0.80852553,16843.0,16842.0,1.77739564]
[1672973095936,0.45222689,16843.0,16842.0,1.83819564]
[1672973096203,0.45222689,16843.0,16842.0,1.77739564]
[1672973097707,0.45222689,16843.0,16842.0,1.83819564]
[1672973097962,0.45222689,16843.0,16842.0,1.83974549]
[1672973098465,0.45222689,16843.0,16842.0,1.83819564]
[1672973098986,0.45222689,16843.0,16842.0,1.83974549]
[1672973099256,0.45222689,16843.0,16842.0,1.83819564]
[1672973099532,0.45222689,16843.0,16842.0,1.77739564]
[1672973100317,0.45222689,16843.0,16842.0,1.18476342]
[1672973100318,0.13622318,16843.0,16842.0,1.18476342]
[1672973100571,0.00681318,16843.0,16842.0,1.18476342]
[1672973101082,0.00681318,16843.0,16842.0,1.24556342]
[1672973101391,0.45216215,16843.0,16842.0,1.83819564]
[1672973101883,0.00681318,16843.0,16842.0,1.82650964]
[1672973102168,0.45216588,16843.0,16842.0,1.82650964]
[1672973103181,0.8084119,16843.0,16842.0,1.82658712]
[1672973103696,0.8084119,16843.0,16842.0,1.82650964]
[1672973104225,0.8084119,16843.0,16842.0,1.82658712]
[1672973104445,0.80840557,16843.0,16842.0,1.82650964]
[1672973105218,0.45216588,16843.0,16842.0,1.82650964]
[1672973105476,0.45216588,16843.0,16842.0,1.82658712]
[1672973105759,0.45216588,16843.0,16842.0,1.82650964]
[1672973106464,0.45216588,16843.0,16842.0,1.82658712]
[1672973106717,0.45216588,16843.0,16842.0,1.82650964]
[1672973107204,0.45216588,16843.0,16842.0,1.76570964]
[1672973107722,0.45216588,16843.0,16842.0,1.82650964]
[1672973109058,0.45216588,16843.0,16842.0,1.82658712]
[1672973109305,0.45216588,16843.0,16842.0,1.82650964]
[1672973111114,0.45216588,16843.0,16842.0,1.82658712]
[1672973112447,0.45216588,16843.0,16842.0,1.82650964]
[1672973113228,0.45216588,16843.0,16842.0,1.82658712]
[1672973113494,0.45216588,16843.0,16842.0,1.82650964]
[1672973114512,0.45216588,16843.0,16842.0,1.82658712]
[1672973114725,0.45216588,16843.0,16842.0,1.82650964]
[1672973115508,0.45216588,16843.0,16842.0,1.82658712]
[1672973115781,0.45216588,16843.0,16842.0,1.82650964]
[1672973117083,0.45216588,16843.0,16842.0,1.24300132]
[1672973118134,0.45216588,16843.0,16842.0,1.83675432]
[1672973120157,0.45216588,16843.0,16842.0,1.8368318]
[1672973120781,0.45216588,16843.0,16842.0,1.83675432]
[1672973124268,0.45216588,16843.0,16842.0,1.8368318]
[1672973124787,0.45216588,16843.0,16842.0,1.83675432]
[1672973125045,0.8085271,16843.0,16842.0,2.43050732]
[1672973125296,0.45216588,16843.0,16842.0,2.43051768]
[1672973129074,0.80860597,16843.0,16842.0,2.43051768]
[1672973130117,0.45216588,16843.0,16842.0,2.43051768]
[1672973130971,0.80862346,16843.0,16842.0,2.43051768]
[1672973133864,0.80862346,16843.0,16842.0,2.4304402]
[1672973134449,0.45216588,16843.0,16842.0,2.4304402]
[1672973134717,0.80860493,16843.0,16842.0,2.4304402]
[1672973137212,0.80860493,16843.0,16842.0,2.43051768]
[1672973137973,0.80860493,16843.0,16842.0,2.4304402]
[1672973138500,0.80860493,16843.0,16842.0,2.43051768]
[1672973139058,0.80860493,16843.0,16842.0,2.4304402]
[1672973139320,0.45216588,16843.0,16842.0,2.4304402]
[1672973139837,0.45216588,16843.0,16842.0,2.43051768]
[1672973140418,0.45216588,16843.0,16842.0,2.4304402]
[1672973140934,0.45216588,16843.0,16842.0,2.43051768]
[1672973142164,0.8085881,16843.0,16842.0,2.43051768]
[1672973144247,0.8085881,16843.0,16842.0,2.36971768]
[1672973144459,0.8085881,16843.0,16842.0,2.43051768]
[1672973144711,0.8085881,16843.0,16842.0,2.36971768]
[1672973145801,1.0758881,16843.0,16842.0,2.36971768]
[1672973146079,0.6305354,16843.0,16842.0,2.36971768]
[1672973146597,0.6305354,16843.0,16842.0,2.43051768]
[1672973147083,0.6305354,16843.0,16842.0,2.36971768]
[1672973147339,0.80871184,16843.0,16842.0,2.43051768]
[1672973147592,0.80871184,16843.0,16842.0,1.8410157]
[1672973147868,0.45228962,16843.0,16842.0,2.50672506]
[1672973148139,0.18498962,16843.0,16842.0,1.8410157]
[1672973148381,0.00681318,16843.0,16842.0,2.55224897]
[1672973148629,0.00081318,16843.0,16842.0,1.8410157]
[1672973148884,0.00181318,16843.0,16842.0,2.48109176]
[1672973149138,0.00081318,16843.0,16842.0,2.48109176]
[1672973149396,0.00081318,16843.0,16842.0,2.54909176]
[1672973151363,0.17898962,16843.0,16842.0,2.54909176]
[1672973151619,0.00081318,16843.0,16842.0,2.48829176]
[1672973152167,0.00081318,16843.0,16842.0,2.54909176]
[1672973153995,0.17898962,16843.0,16842.0,2.54909176]
[1672973154522,0.00081318,16843.0,16842.0,2.54909176]
[1672973155292,0.17898962,16843.0,16842.0,2.54909176]
[1672973156308,0.00081318,16843.0,16842.0,2.54909176]
[1672973156579,0.17898962,16843.0,16842.0,2.54909176]
[1672973156798,0.17898962,16843.0,16842.0,2.54901428]
[1672973157095,0.44628962,16843.0,16842.0,2.48821428]
[1672973157600,0.44628962,16843.0,16842.0,2.54901428]
[1672973158117,0.44628962,16843.0,16842.0,2.54908808]
[1672973162254,0.17898962,16843.0,16842.0,2.54908808]
[1672973163022,0.17898962,16843.0,16842.0,2.48828808]
[1672973163535,0.17898962,16843.0,16842.0,2.54908808]
[1672973165329,0.00081318,16843.0,16842.0,2.54908808]
[1672973174075,0.00081318,16843.0,16842.0,2.48829158]
[1672973174339,0.17898962,16843.0,16842.0,1.89565936]
[1672973174599,0.17898962,16843.0,16842.0,1.95645936]
[1672973185705,0.17898962,16843.0,16842.0,1.89565936]
[1672973186205,0.17898962,16843.0,16842.0,1.95645936]
[1672973187387,0.17898962,16843.0,16842.0,1.95638206]
[1672973187639,0.44628962,16843.0,16842.0,1.95645603]
[1672973188392,0.17898962,16843.0,16842.0,1.95645603]
[1672973188653,0.17898962,16843.0,16842.0,1.89565603]
[1672973188906,0.17898962,16843.0,16842.0,1.95645603]
[1672973189159,0.17898962,16843.0,16842.0,1.89565603]
[1672973189413,0.17898962,16843.0,16842.0,1.95645603]
[1672973190162,0.44628962,16843.0,16842.0,1.95645603]
[1672973190415,0.17898962,16843.0,16842.0,1.95645603]
[1672973193406,0.17898962,16843.0,16842.0,1.89565603]
[1672973193653,0.17898962,16843.0,16842.0,1.95645603]
[1672973194962,0.00081318,16843.0,16842.0,2.13390605]
[1672973196461,0.17898962,16843.0,16842.0,1.95645603]
[1672973196725,0.79271184,16844.0,16842.0,2.13390605]
[1672973197002,0.79271184,16844.0,16842.0,2.07310605]
[1672973197256,0.79271184,16844.0,16843.0,0.76599372]
[1672973197510,0.79271184,16844.0,16843.0,1.95342972]
[1672973197952,0.79371184,16844.0,16843.0,1.95342972]
[1672973198210,0.43728962,16844.0,16843.0,1.95342972]
[1672973198477,0.43628962,16844.0,16843.0,1.95342972]
[1672973198696,0.43728962,16844.0,16843.0,1.95342972]
[1672973199725,0.6155354,16844.0,16843.0,1.95342972]
[1672973202399,0.6155354,16844.0,16843.0,1.89263572]
[1672973202662,0.6155354,16844.0,16843.0,1.95342772]
[1672973203997,0.43730653,16844.0,16843.0,1.89263572]
[1672973204302,0.43730653,16844.0,16843.0,1.95342772]
[1672973208203,0.17919335,16844.0,16843.0,1.95342772]
[1672973212168,0.43730653,16844.0,16843.0,1.89263572]
[1672973212408,0.17919335,16844.0,16843.0,1.95342772]
[1672973212904,0.17919335,16844.0,16843.0,1.89263572]
[1672973213175,0.17919335,16844.0,16843.0,1.95342772]
[1672973218739,8.6221789,16845.0,16844.0,1.42791027]
[1672973218996,8.6221789,16845.0,16844.0,2.61527627]
[1672973219214,8.6221789,16845.0,16844.0,2.67613423]
[1672973219476,8.6221789,16845.0,16844.0,2.70659107]
[1672973219741,8.6221789,16845.0,16844.0,2.67613423]
[1672973219999,8.6291789,16845.0,16844.0,2.67813423]
[1672973220252,8.6291789,16845.0,16844.0,2.67806027]
[1672973220478,8.6291789,16845.0,16844.0,2.61727627]
[1672973220738,8.6291789,16845.0,16844.0,2.67806027]
[1672973221262,8.6291789,16845.0,16844.0,2.67820449]
[1672973221887,8.6291789,16845.0,16844.0,2.67806027]
[1672973222145,8.81641842,16845.0,16844.0,2.67806027]
[1672973222368,8.81641842,16845.0,16844.0,2.61727627]
[1672973222860,8.81641842,16845.0,16844.0,2.67806027]
[1672973223580,8.81641842,16845.0,16844.0,2.67820449]
[1672973224381,8.81641842,16845.0,16844.0,2.61742049]
[1672973224907,8.81641842,16845.0,16844.0,2.67820449]
[1672973225421,8.63827307,16845.0,16844.0,2.67820449]
[1672973225670,8.63827307,16845.0,16844.0,2.61742049]
[1672973227794,8.63827307,16845.0,16844.0,2.61727627]
[1672973228879,8.63827307,16845.0,16844.0,2.67806027]
[1672973229616,8.63827307,16845.0,16844.0,2.61727627]
[1672973229867,8.63827307,16845.0,16844.0,2.67806027]
[1672973230153,8.63827307,16845.0,16844.0,2.61727627]
[1672973230664,9.08362577,16845.0,16844.0,2.67806027]
[1672973230919,8.63827307,16845.0,16844.0,2.67806027]
[1672973231437,8.63827307,16845.0,16844.0,2.67820449]
[1672973232205,8.63827307,16845.0,16844.0,2.61742049]
[1672973238288,8.63827307,16845.0,16844.0,2.67820449]
[1672973239096,8.63827307,16845.0,16844.0,2.61742049]
[1672973239326,8.63827307,16845.0,16844.0,2.67820449]
[1672973239579,8.63827307,16845.0,16844.0,2.61727627]
[1672973240385,8.63827307,16845.0,16844.0,2.67806027]
[1672973240634,9.08362577,16845.0,16844.0,2.67806027]
[1672973241402,8.81641842,16845.0,16844.0,2.67806027]
[1672973241659,9.08371702,16845.0,16844.0,2.67806027]
[1672973242435,8.63836432,16845.0,16844.0,2.67806027]
[1672973242714,9.08371702,16845.0,16844.0,2.67806027]
[1672973243191,8.63836432,16845.0,16844.0,2.67820449]
[1672973243762,9.08371702,16845.0,16844.0,2.67806027]
[1672973243981,8.81641842,16845.0,16844.0,2.67806027]
[1672973244349,8.81641842,16845.0,16844.0,2.67820449]
[1672973245312,8.81641842,16845.0,16844.0,2.61742049]
[1672973245564,8.81641842,16845.0,16844.0,2.67820449]
[1672973246473,9.08376711,16845.0,16844.0,2.67820449]
[1672973246983,8.63841441,16845.0,16844.0,2.67820449]
[1672973248211,8.63841441,16845.0,16844.0,2.61742049]
[1672973248444,8.63841441,16845.0,16844.0,2.67820449]
[1672973249871,8.63841441,16845.0,16844.0,2.61727627]
[1672973250970,8.63841441,16845.0,16844.0,2.67806027]
[1672973251224,8.63841441,16845.0,16844.0,2.61727627]
[1672973251715,8.63841441,16845.0,16844.0,2.67806027]
[1672973252175,8.63841441,16845.0,16844.0,2.61727627]
[1672973252694,8.63841441,16845.0,16844.0,2.67806027]
[1672973253226,8.63841441,16845.0,16844.0,2.61727627]
[1672973253489,8.63841441,16845.0,16844.0,2.61742049]
[1672973254000,8.63841441,16845.0,16844.0,2.61727627]
[1672973254251,8.63841441,16845.0,16844.0,2.67806027]
[1672973254553,8.63841441,16845.0,16844.0,2.67820449]
[1672973255040,8.63841441,16845.0,16844.0,2.61742049]
[1672973256876,8.63841441,16845.0,16844.0,2.67820449]
[1672973258621,9.08376711,16845.0,16844.0,2.61727627]
[1672973258856,8.81641842,16845.0,16844.0,2.61727627]
[1672973259111,8.81641842,16845.0,16844.0,2.67806027]
[1672973259599,8.81641842,16845.0,16844.0,2.61727627]
[1672973259859,8.81641842,16845.0,16844.0,2.67806027]
[1672973260110,8.81641842,16845.0,16844.0,2.61727627]
[1672973260373,8.4599962,16845.0,16844.0,2.02349393]
[1672973260630,9.0716402,16845.0,16844.0,2.02349393]
[1672973261663,8.4599962,16845.0,16844.0,2.02349393]
[1672973261929,8.81637991,16845.0,16844.0,2.61732115]
[1672973262219,8.63831013,16845.0,16844.0,2.61732115]
[1672973262645,9.08366283,16845.0,16844.0,2.61732115]
[1672973262890,9.08366283,16845.0,16844.0,2.02363815]
[1672973263818,8.63831013,16845.0,16844.0,2.02363815]
[1672973264563,9.08366283,16845.0,16844.0,2.02363815]
[1672973265100,8.63831013,16845.0,16844.0,2.02363815]
[1672973265581,8.81637991,16845.0,16844.0,2.02349393]
[1672973265829,9.08367536,16845.0,16844.0,2.02349393]
[1672973266090,8.63832266,16845.0,16844.0,2.61717693]
[1672973268124,8.63832266,16845.0,16844.0,2.02349393]
[1672973268681,9.08367536,16845.0,16844.0,2.02349393]
[1672973268891,8.81637991,16845.0,16844.0,2.02349393]
[1672973269162,8.81637991,16845.0,16844.0,2.02363815]
[1672973269411,8.63832132,16845.0,16844.0,2.02363815]
[1672973269674,9.08367402,16845.0,16844.0,2.02363815]
[1672973270443,9.08367402,16845.0,16844.0,2.08442215]
[1672973270717,8.63832163,16845.0,16844.0,2.08442215]
[1672973270966,8.26296702,16845.0,16844.0,1.26371484]
[1672973271712,7.81761432,16845.0,16844.0,1.26371484]
[1672973273258,8.26296702,16845.0,16844.0,1.26371484]
[1672973275306,7.81761432,16845.0,16844.0,1.26371484]
[1672973275532,8.26296702,16845.0,16844.0,1.26371484]
[1672973275755,8.26296778,16845.0,16844.0,1.26371484]
[1672973276270,7.9956726,16845.0,16844.0,1.26371484]
[1672973276802,8.26296775,16845.0,16844.0,1.26371484]
[1672973277064,8.26296775,16845.0,16844.0,1.80541572]
[1672973277316,7.81761505,16845.0,16844.0,1.80541572]
[1672973279041,7.9956726,16845.0,16844.0,1.8052715]
[1672973279265,7.9956726,16845.0,16844.0,1.80541572]
[1672973279519,7.81761468,16845.0,16844.0,1.80541572]
[1672973280316,8.26296738,16845.0,16844.0,1.80541572]
[1672973280575,7.9956726,16845.0,16844.0,1.80541572]
[1672973281057,7.9956726,16845.0,16844.0,2.39909872]
[1672973281306,7.9956726,16845.0,16844.0,1.80541572]
[1672973282546,7.9956726,16845.0,16844.0,1.8052715]
[1672973283290,7.9956726,16845.0,16844.0,1.7444875]
[1672973283553,7.9956726,16845.0,16844.0,1.74463172]
[1672973287432,7.9956726,16845.0,16844.0,1.80541572]
[1672973287718,7.9956726,16845.0,16844.0,2.39909872]
[1672973288472,7.9956726,16845.0,16844.0,1.80541572]
[1672973289058,7.9956726,16845.0,16844.0,1.74463172]
[1672973290007,7.9956726,16845.0,16844.0,1.74425346]
[1672973290265,7.9956726,16845.0,16844.0,1.20278662]
[1672973290905,7.9956726,16845.0,16844.0,1.74420234]
[1672973292517,7.9956726,16845.0,16844.0,1.74416311]
[1672973293006,7.63928889,16845.0,16844.0,1.74416311]
[1672973293745,7.63928889,16845.0,16844.0,1.7453064]
[1672973294018,7.99568073,16845.0,16844.0,1.7453064]
[1672973295078,7.99568073,16845.0,16844.0,1.74416311]
[1672973295641,7.99568073,16845.0,16844.0,1.74405622]
[1672973298488,7.99568073,16845.0,16844.0,1.80484022]
[1672973298772,7.99568073,16845.0,16844.0,1.74405622]
[1672973299033,7.99568073,16845.0,16844.0,1.80484022]
[1672973299293,7.99568073,16845.0,16844.0,1.74405622]
[1672973299848,7.99568073,16845.0,16844.0,0.002]
[1672973300106,7.22957553,16845.0,16844.0,0.002]
[1672973303431,7.22957553,16845.0,16844.0,0.00314329]
[1672973303678,7.19393619,16845.0,16844.0,0.002]
[1672973304192,7.63927131,16845.0,16844.0,0.002]
[1672973304480,7.19393619,16845.0,16844.0,0.002]
[1672973306184,7.63926718,16845.0,16844.0,0.002]
[1672973311528,7.19393619,16845.0,16844.0,0.002]
[1672973313336,7.63914514,16845.0,16844.0,0.002]
[1672973313850,7.1938641,16845.0,16844.0,0.002]
[1672973316591,7.8055081,16845.0,16844.0,0.002]
[1672973316854,9.20795708,16845.0,16844.0,0.002]
[1672973317115,10.03241545,16845.0,16844.0,0.002]
[1672973317369,9.14488878,16845.0,16844.0,0.002]
[1672973317635,9.6871749,16845.0,16844.0,0.002]
[1672973317901,9.62788246,16845.0,16844.0,0.002]
[1672973318157,9.0865279,16845.0,16842.0,0.58302888]
[1672973318416,9.55260413,16845.0,16844.0,0.01]
[1672973318696,9.62935041,16845.0,16844.0,0.01]
[1672973319223,9.55935041,16845.0,16842.0,1.17754696]
[1672973319491,1.06837424,16843.0,16842.0,1.17754696]
[1672973319952,1.68001824,16843.0,16842.0,0.58316333]
[1672973320217,1.06833592,16843.0,16842.0,0.58302888]
[1672973320475,0.62317999,16843.0,16842.0,0.59302888]
[1672973320736,0.62317999,16843.0,16842.0,1.17754696]
[1672973321059,0.69417999,16843.0,16842.0,1.18654696]
[1672973321469,0.69417999,16843.0,16842.0,1.17754696]
[1672973322823,1.06833592,16843.0,16842.0,1.17754696]
[1672973323084,0.83628068,16843.0,16842.0,1.17954696]
[1672973323344,0.83628068,16843.0,16842.0,0.58502888]
[1672973324400,0.65814346,16843.0,16842.0,1.17954696]
[1672973325137,0.65814346,16843.0,16842.0,1.17968141]
[1672973325420,1.10329939,16843.0,16842.0,1.17954696]
[1672973325673,0.83628068,16843.0,16842.0,1.17954696]
[1672973326412,0.65812798,16843.0,16842.0,1.17968141]
[1672973326692,1.10328391,16843.0,16842.0,1.17954696]
[1672973326948,0.65812798,16843.0,16842.0,1.17954696]
[1672973329063,0.8361271,16843.0,16842.0,1.17954696]
[1672973329579,1.10312675,16843.0,16842.0,1.17954696]
[1672973330104,0.8361271,16843.0,16842.0,1.17954696]
[1672973330363,1.4477711,16843.0,16842.0,0.58502888]
[1672973330878,0.8361271,16843.0,16842.0,0.58502888]
[1672973331445,1.09164635,16843.0,16842.0,0.002]
[1672973331873,1.44764135,16843.0,16842.0,0.002]
[1672973334235,0.83599735,16843.0,16842.0,0.002]
[1672973335712,1.44764135,16843.0,16842.0,0.002]
[1672973335980,1.09164635,16843.0,16842.0,0.002]
[1672973336228,1.09164635,16843.0,16842.0,0.0019341]
[1672973336454,1.44764862,16843.0,16842.0,0.0019341]
[1672973336749,0.83600462,16843.0,16842.0,0.0019341]
[1672973337018,1.44764862,16843.0,16842.0,0.0019341]
[1672973337535,0.83600462,16843.0,16842.0,0.0019341]
[1672973338011,1.44764862,16843.0,16842.0,0.69222738]
[1672973338305,1.44764862,16843.0,16842.0,1.28674546]
[1672973338786,1.44764862,16843.0,16842.0,0.69222738]
[1672973339073,0.83600462,16843.0,16842.0,0.69222738]
[1672973339328,0.83600462,16843.0,16842.0,1.28674546]
[1672973340338,1.09164635,16843.0,16842.0,0.69222738]
[1672973340582,1.44769999,16843.0,16842.0,0.69222738]
[1672973341108,1.09164635,16843.0,16842.0,0.69222738]
[1672973342404,1.09164635,16843.0,16842.0,0.0019341]
[1672973342669,1.99440678,16843.0,16842.0,0.0019341]
[1672973342954,1.54940443,16843.0,16842.0,0.0019341]
[1672973343193,2.14312243,16843.0,16842.0,0.0019341]
[1672973343703,1.81162389,16843.0,16842.0,0.0019341]
[1672973345590,1.19997989,16843.0,16842.0,0.0019341]
[1672973347633,0.60626189,16843.0,16842.0,0.0019341]
[1672973348933,0.60626189,16843.0,16842.0,0.00206855]
[1672973349193,0.60626189,16843.0,16842.0,0.0019341]
[1672973351387,0.60626189,16843.0,16842.0,0.00206855]
[1672973351867,0.60626189,16843.0,16842.0,0.0019341]
[1672973352467,0.60626189,16843.0,16842.0,0.00206855]
[1672973352718,0.60626189,16843.0,16842.0,0.0019341]
[1672973353475,0.60626189,16843.0,16842.0,0.00206855]
[1672973353711,0.60626189,16843.0,16842.0,0.0019341]
[1672973355730,0.60626189,16843.0,16842.0,0.00206855]
[1672973355993,0.60626189,16843.0,16842.0,0.0019341]
[1672973359374,0.60626189,16843.0,16842.0,0.00206855]
[1672973359696,0.60626189,16843.0,16842.0,0.0019341]
[1672973360194,0.60626189,16843.0,16842.0,0.00183693]
[1672973362185,0.60626189,16843.0,16842.0,0.00197138]
[1672973362476,0.60626189,16843.0,16842.0,0.00183693]
[1672973363239,0.60626189,16843.0,16842.0,0.00197138]
[1672973363493,0.60626189,16843.0,16842.0,0.00183693]
[1672973363750,0.60626189,16843.0,16842.0,1.15715841]
[1672973365582,0.035,16843.0,16842.0,1.15729286]
[1672973365832,0.48041041,16843.0,16842.0,1.15729286]
[1672973366378,0.48041041,16843.0,16842.0,1.75091141]
[1672973366891,0.48041041,16843.0,16842.0,1.75104586]
[1672973367148,0.48041041,16843.0,16842.0,1.75091141]
[1672973367990,0.48041041,16843.0,16842.0,1.15715841]
[1672973369222,0.48041041,16843.0,16842.0,1.15729286]
[1672973369486,0.48041041,16843.0,16842.0,1.15715841]
[1672973370529,0.48041041,16843.0,16842.0,1.15729286]
[1672973371048,0.48041041,16843.0,16842.0,1.15715841]
[1672973374386,0.48041041,16843.0,16842.0,0.54764033]
[1672973374896,0.48041041,16843.0,16842.0,1.14215841]
[1672973375661,0.48041041,16843.0,16842.0,0.54764033]
[1672973376160,0.035,16843.0,16842.0,0.54764033]
[1672973376411,0.48039946,16843.0,16842.0,0.54764033]
[1672973376656,0.035,16843.0,16842.0,0.54764033]
[1672973382372,0.035,16843.0,16841.0,1.18828608]
[1672973382637,0.80177607,16842.0,16841.0,1.18828608]